Cogmind - Beta 16.1 @@@ ROGUE MODE // 2026.02.21 @ 12:33:38 Player: Kaisercar Result: Self-destructed Performance ------------- Evolutions (6) 3000 Regions Visited (20) 4000 Robots Destroyed (387) 1935 Value Destroyed (17949) 17949 Prototype IDs (35) 700 Alien Tech Used (1) 200 Bonus (8294) 8294 TOTAL SCORE: 36078 Bonus ------- High Alert Combat Kills 3718 Follower Combat Kills 615 Entered Garrisons 800 Entered DSFs 500 Aligned with FarCom 300 Acquired ECA 300 Met Warlord at Base 500 MAIN.C Attacked Warlord 500 Warlord Defense Kills 1288 Friendly Fire -227 Cogmind --------- Core Integrity 607/1150 Matter 241/300 Energy 100/100 System Corruption 40% Temperature Cool (0) Movement Walking (120) Location -4/Factory Parts ------- > --- POWER (2) -------- (None) > --- PROPULSION (5) --- Myomer Leg (fused) > --- UTILITY (9) ------ Improved Target Analyzer Improved Core Shielding Advanced Hacking Suite System Mapper Advanced System Shield Skeleton Box > --- WEAPON (4) ------- (None) > --- INVENTORY (5) ---- Medium Storage Unit Improved Remote Datajack Peak State ------------ > --- POWER ------------ Reinforced Fission Core Micro Fission Core > --- PROPULSION ------- Armored Medium Treads Heavy Treads Heavy Treads > --- UTILITY ---------- Huge Storage Unit Terrain Scanner Experimental Core Analyzer Makeshift Light Armor Plating Makeshift Ablative Armor Experimental Focal Shield Advanced Hacking Suite Advanced System Shield High-powered Tractor Beam > --- WEAPON ----------- Phase Gun Gauss Cannon Heavy Autocannon > --- INVENTORY -------- Armored Medium Treads Wheel Advanced Power Amplifier High-capacity Matter Pod Improved Sensor Array Matter Filter Transmission Jammer Improved Core Shielding Makeshift Light Armor Plating Makeshift Light Armor Plating Makeshift Ablative Armor Advanced Shield Generator System Mapper Skeleton Box Phase Cannon Advanced Plasma Cannon Railgun Gauss Cannon Magnetic Acceleration Cannon Enhanced Gauss Cannon Long-range Missile Launcher Scatter Rocket Array Improved Remote Datajack Power Maul [Rating: 127] Favorites ----------- Power Improved Deuterium Engine Engine Improved Deuterium Engine Power Core Micro Fission Core Reactor Antimatter Reactor Propulsion Light Treads Treads Light Treads Leg Improved Titanium Leg Wheel Wheel Hover Unit Combat Airjet Utility Huge Storage Unit Device Improved Terrain Scanner Storage Huge Storage Unit Processor Improved Terrain Scan Processor Hackware Advanced Hacking Suite Protection Core Shielding Weapon Gauss Rifle Energy Gun Spread Laser Energy Cannon Heavy Plasma Cannon Ballistic Gun Gauss Rifle Ballistic Cannon Improved Light Cannon Launcher Advanced EMP Blaster Special Weapon Improved Remote Datajack Impact Weapon Powered Hammer Slashing Weapon Katana Build | -11 -10 -10 -10 -9 -8 -8 -8 -8 -7 -7 -7 -7 -6 -6 -5 -5 -5 -5 -4 -4 ------- Run | Yrd Mat Min Exi Min Mat Gar Mat Gar Fac Gar Sto Gar Fac DSF Fac Upp Upp War Pro Fac Slots Evolved 12 | . . . . . 4 . . . 2 . . . 2 . 2 . . . . 2 Power . | . . . . . . . . . . . . . . . . . . . . . Propulsion 3 | . . . . . 2 . . . 1 . . . . . . . . . . . Utility 7 | . . . . . 1 . . . 1 . . . 1 . 2 . . . . 2 Weapon 2 | . . . . . 1 . . . . . . . 1 . . . . . . . Parts Attached 209 | 7 11 1 1 6 20 12 13 7 14 16 9 12 . 5 21 6 9 14 1 24 Power 19 | 1 . . . 1 . 2 2 1 . 3 1 2 . . . 2 . 1 . 3 Engine 11 | 1 . . . 1 . 1 2 1 . 2 1 2 . . . . . . . . Core 5 | . . . . . . 1 . . . 1 . . . . . 2 . 1 . . Reactor 3 | . . . . . . . . . . . . . . . . . . . . 3 Propulsion 58 | 2 2 . 1 2 5 4 4 3 2 6 2 7 . . 10 1 . 1 . 6 Treads 27 | 2 1 . . 2 5 4 . . . 2 2 3 . . 2 1 . 1 . 2 Leg 17 | . . . . . . . 4 3 1 4 . 1 . . 2 . . . . 2 Wheel 9 | . 1 . 1 . . . . . 1 . . . . . 4 . . . . 2 Hover 5 | . . . . . . . . . . . . 3 . . 2 . . . . . Flight . | . . . . . . . . . . . . . . . . . . . . . Utility 57 | 2 1 1 . . 5 1 3 1 2 2 4 1 . 3 7 3 4 6 1 10 Device 24 | 1 . . . . 4 1 1 . . 2 2 . . 1 2 1 2 1 1 5 Storage 2 | 1 1 . . . . . . . . . . . . . . . . . . . Processor 8 | . . . . . 1 . . . . . 1 . . 1 3 . . 1 . 1 Hackware 4 | . . . . . . . . . . . 1 . . . 1 . . . . 2 Protection 19 | . . 1 . . . . 2 1 2 . . 1 . 1 1 2 2 4 . 2 Artifact . | . . . . . . . . . . . . . . . . . . . . . Weapon 75 | 2 8 . . 3 10 5 4 2 10 5 2 2 . 2 4 . 5 6 . 5 Energy Gun 6 | 2 . . . 1 . . 1 . . 1 . . . . . . . . . 1 Energy Cannon 12 | . . . . . 2 2 1 . . 1 . . . 1 1 . 1 2 . 1 Ballistic Gun 18 | . 3 . . . 5 2 1 . 2 . . 1 . . 1 . 1 . . 2 Ballistic Cannon 22 | . 3 . . 1 . . . 1 6 3 . 1 . 1 1 . 2 3 . . Launcher 9 | . 2 . . 1 1 1 1 . . . 1 . . . . . 1 1 . . Special Weapon 3 | . . . . . . . . 1 1 . . . . . 1 . . . . . Impact Weapon 4 | . . . . . 2 . . . . . 1 . . . . . . . . 1 Slashing Weapon 1 | . . . . . . . . . 1 . . . . . . . . . . . Piercing Weapon . | . . . . . . . . . . . . . . . . . . . . . Special Melee Weapon . | . . . . . . . . . . . . . . . . . . . . . Unidentified Prototypes 11 | . . . . . 2 . 2 . 1 . 1 . . . . 1 . 3 . 1 Corrupted Parts 6 | . . . . . . . . 1 . . . 2 . . . . . . . 3 System Corruption 48 | . . . . . . . . 1 . . . 17 . . . . . . . 30 Parts Lost 69 | . . . . . . 2 . 3 . 5 1 8 . 1 6 . 7 1 . 35 Power 6 | . . . . . . 1 . 1 . . . . . . . . . . . 4 Propulsion 22 | . . . . . . 1 . 1 . 3 1 4 . . 3 . . . . 9 Utility 22 | . . . . . . . . . . 1 . 1 . 1 3 . 4 1 . 11 Weapon 19 | . . . . . . . . 1 . 1 . 3 . . . . 3 . . 11 Highest Loss Streak 14 | . . . . . . 1 . 1 . 3 1 4 . 1 3 . 5 1 . 14 To Critical Strikes 1 | . . . . . . . . . . . . . . . . . . . . 1 Average Backups 23 | 2 11 23 24 25 24 24 24 24 24 23 23 20 23 24 24 23 23 23 24 18 Power 1 | . 1 1 3 4 4 2 1 . . 1 1 2 3 3 2 . . . . . Propulsion 1 | . 1 3 2 2 1 1 . . 1 . . . . . . 1 1 1 2 1 Utility 10 | . 2 5 5 5 6 9 12 13 12 12 13 11 13 14 13 13 12 12 13 9 Weapon 7 | . 6 12 13 13 10 8 7 8 7 6 6 4 5 4 5 6 5 7 7 6 Tool/Special . | . . . . . . . . . . . . . . . . . . . . . Unused Backups 45 | . 5 2 2 . 13 4 3 . . . . 1 . 1 7 1 1 3 . 2 Power 10 | . . . . . 5 1 3 . . . . . . . 1 . . . . . Propulsion 5 | . 1 . . . 2 . . . . . . . . . 2 . . . . . Utility 14 | . 1 2 1 . 1 1 . . . . . 1 . . 2 1 1 1 . 2 Weapon 13 | . 3 . . . 4 2 . . . . . . . 1 1 . . 2 . . Tool/Special 3 | . . . 1 . 1 . . . . . . . . . 1 . . . . . Average Slot Usage (%) 91 | . 99 100 100 100 99 99 99 99 96 86 75 76 92 93 87 85 83 84 82 73 Engine 7 | . 13 14 14 14 9 7 9 9 7 6 7 7 6 6 5 . . . . . Core 2 | . . . . . . 1 . . . . . . . . . 6 11 11 11 7 Treads 15 | . 22 14 14 24 35 35 6 . . 3 21 11 20 20 7 12 15 11 16 10 Leg 7 | . . . . . . . 29 35 30 17 . 1 6 6 2 . . . . 1 Wheel 3 | . 4 14 14 3 . . . . 3 7 . . . . 10 8 . 9 . . Device 7 | . 14 1 . . 8 9 5 . 6 4 9 6 13 6 10 10 10 7 10 11 Storage 8 | . 14 14 14 14 9 9 9 9 7 7 7 5 6 6 5 5 5 5 5 3 Processor 7 | . . . . . 8 9 9 9 7 7 12 7 6 12 10 11 9 8 5 6 Hackware 2 | . . . . . . . . . . . . 7 6 . 3 5 5 5 5 11 Protection 5 | . . 12 14 14 . . 2 8 7 9 . . . 6 5 5 6 10 11 9 Energy Cannon 2 | . . . . . . 1 5 . . 3 4 2 . 3 5 5 4 4 5 . Ballistic Gun 8 | . 7 28 28 11 10 13 16 18 10 2 . . 6 . 3 5 4 . . 1 Ballistic Cannon 6 | . 15 . . 4 10 4 . 1 6 6 9 8 12 13 7 5 6 3 6 6 Launcher 1 | . 3 . . 4 . 5 4 5 1 . . . . . . . . 5 3 . Peak Build Rating 127 | 7 12 13 14 15 32 36 45 45 53 70 78 78 70 72 83 94 99 118 119 127 Average Rating 52 | 5 10 12 13 14 27 31 42 42 50 55 75 60 69 70 75 84 96 92 118 101 On Entrance 51 | . 7 12 13 14 15 28 34 45 41 51 70 77 62 70 70 83 94 70 115 119 Avg Prop Armor Cover (%) 11 | . 10 11 11 11 . . . . 11 15 13 7 4 3 7 14 13 13 . 8 Naked Turns . | . . . . . . . . . . . . . . . . . . . . . Heaviest Build 173 | 15 94 92 92 98 104 109 115 104 114 129 133 127 127 141 143 149 153 172 172 173 Greatest Support 170 | 40 40 10 10 40 80 80 80 80 90 28 170 170 60 60 60 170 170 170 167 167 Greatest Overweight (x) 43 | 2 28 9 9 9 1 1 2 1 3 4 4 9 2 2 14 7 7 7 1 43 Average Overweight (x) 2 | . 3 9 9 4 1 1 1 1 2 3 . 2 2 2 4 4 . 4 1 1 Largest Inventory Capacity 25 | 8 25 25 25 25 25 25 25 25 25 25 25 25 25 25 25 25 25 25 25 25 Average Capacity 24 | 7 17 25 25 25 25 25 25 25 25 25 25 22 25 25 25 25 25 25 25 20 Most Carried 25 | 3 24 25 25 25 25 25 25 25 25 25 25 25 25 25 25 25 25 25 25 25 Average Carried 23 | 2 11 23 24 24 24 24 24 24 24 24 24 20 23 24 24 24 23 24 24 18 Final Capacity 25 | 8 25 25 25 25 25 25 25 25 25 25 25 25 25 25 25 25 25 25 25 5 Final Carried 25 | 3 22 25 25 25 25 25 25 25 25 25 25 25 25 24 25 24 23 25 25 2 Class Distribution -------------------- 26% | Scavenger-Skirmisher 22% | Mutant 14% | Skirmisher 8% | Scavenger-Tank 6% | Scavenger-Assassin 6% | Tank 5% | Scavenger-Mutant Dominant Class ---------------- Mutant | -10/Materials Mutant | -10/Mines Mutant | -10/Exiles Mutant | -9/Mines Scavenger-Skirmisher | -8/Materials Scavenger-Skirmisher | -8/Garrison Skirmisher | -8/Materials Skirmisher | -8/Garrison Scavenger-Skirmisher | -7/Factory Scavenger-Skirmisher | -7/Garrison Scavenger-Tank | -7/Storage Scavenger-Mutant | -7/Garrison Scavenger-Skirmisher | -6/Factory Scavenger-Skirmisher | -6/DSF Scavenger-Skirmisher | -5/Factory Scavenger-Skirmisher | -5/Upper Caves Tank | -5/Upper Caves Commander-Tank | -5/Warlord Scavenger-Tank | -4/Proximity Caves Hacker-Tank | -4/Factory Resources | -11 -10 -10 -10 -9 -8 -8 -8 -8 -7 -7 -7 -7 -6 -6 -5 -5 -5 -5 -4 -4 ----------- Run | Yrd Mat Min Exi Min Mat Gar Mat Gar Fac Gar Sto Gar Fac DSF Fac Upp Upp War Pro Fac Matter Collected 14816 | 270 634 623 . 200 900 1177 708 800 953 1378 1132 1079 . 514 498 449 936 669 313 1583 Remotely 1083 | . . . . . 256 41 . . 64 . 63 . . . . . . . . 659 Salvage Created 13918 | 145 587 121 . 387 770 1125 1185 745 1064 1270 767 702 . 576 937 288 959 409 295 1586 Parts 656 | 11 46 15 . 35 37 64 72 44 44 51 33 41 . 8 45 5 34 11 13 47 Haulers Intercepted 12 | . 2 . . . 2 . 3 . . . 4 . . . 1 . . . . . Recyclers Shooed 4 | . . . . . . . 1 . 2 . . . . . . . . . . 1 Parts Field Recycled . | . . . . . . . . . . . . . . . . . . . . . Retrieved Matter . | . . . . . . . . . . . . . . . . . . . . . Parts Self-Destructed 43 | . . . . . . . . . . . . . . . . 5 27 . 11 . Prevented . | . . . . . . . . . . . . . . . . . . . . . Parts Restored . | . . . . . . . . . . . . . . . . . . . . . Kills | -11 -10 -10 -10 -9 -8 -8 -8 -8 -7 -7 -7 -7 -6 -6 -5 -5 -5 -5 -4 -4 ------- Run | Yrd Mat Min Exi Min Mat Gar Mat Gar Fac Gar Sto Gar Fac DSF Fac Upp Upp War Pro Fac Combat Hostiles Destroyed 306 | . 14 5 . 10 16 30 17 24 19 29 18 28 . 8 14 5 24 11 12 22 Melee 1 | . . . . . . . . . . . . 1 . . . . . . . . Guns 72 | . 2 5 . 5 9 14 9 7 8 6 . . . . 1 . 2 . . 4 Cannons 138 | . 8 . . 2 7 7 1 1 5 13 18 12 . 8 13 5 14 3 6 15 AOE 94 | . 4 . . 3 . 9 6 16 6 10 . 15 . . . . 8 8 6 3 Classes Destroyed 22 | 2 8 1 . 1 1 4 . . 1 . . 1 . 1 . . . 1 1 . Worker 17 | . 2 . . . 2 . 1 . 1 . . . . . 5 . . . . 6 Builder 10 | . 2 . . . 1 . 2 . . . 1 . . . 2 . . . . 2 Tunneler 11 | 3 . 1 . 4 . . . . 1 . . . . . 1 . . . . 1 Hauler 12 | . 2 . . . 2 . 3 . . . 4 . . . 1 . . . . . Recycler 13 | 1 . . . 1 . . 4 . 2 . . . . . . . . . . 5 Mechanic 4 | . 1 . . . . . . . 2 . . . . . . . . . . 1 Operator 1 | . 1 . . . . . . . . . . . . . . . . . . . Drone 2 | . . . . . . . . . . . . . . . . . . . 2 . Watcher 11 | . 3 . . . . 1 3 . 1 . 1 . . . . . . . . 2 Swarmer 77 | . 6 2 . 6 . 12 7 9 . 3 . 15 . . . 3 4 . 4 6 Saboteur 3 | . . . . . . . . . . . . 2 . . 1 . . . . . Grunt 130 | . 8 2 . 3 10 6 6 7 11 16 11 4 . 3 6 1 12 10 4 10 Brawler 7 | . . . . 1 . 1 . . 1 . 1 . . 1 1 . 1 . . . Duelist 4 | . . . . . . 1 . . . 1 . . . . 1 . 1 . . . Protector 2 | . . . . . . . . . 1 . . . . . . . 1 . . . Sentry 34 | . . . . . 6 5 2 4 2 5 4 3 . . . 1 2 . . . Demolisher 1 | . . 1 . . . . . . . . . . . . . . . . . . Specialist 3 | . . . . . . 1 . . . 1 1 . . . . . . . . . Hunter 9 | . . . . . . 1 2 1 . . 1 1 . 2 . . . . . 1 Programmer 33 | . . . . . . 3 . 3 4 3 1 3 . 1 5 . 3 . 2 5 Heavy 1 | . . . . . . . . . . . . . . 1 . . . . . . Striker 1 | . . . . . . . . . . . . . . . . . . 1 . . Packrat 2 | . . . . . . . . . . . . . . . . 1 . . 1 . Butcher 1 | . . . . . . 1 . . . . . . . . . . . . . . Best Kill Streak 8 | 3 5 2 . 4 4 6 5 5 5 5 5 7 . 5 5 4 6 8 4 6 Combat Bots Only 8 | . 3 2 . 3 4 6 5 5 5 5 5 7 . 5 5 4 6 8 4 5 Max Kills in Single Turn 5 | 1 2 2 . 2 2 2 5 4 5 3 2 4 . 1 1 1 4 5 2 5 Gunslinging 1 | . . . . . . . . 1 . . . . . . . . . . . . Exploded 5 | . 1 . . 1 . 2 2 4 4 3 . 4 . . . . 4 5 2 2 Melee 1 | . . . . . . . . . . . . 1 . . . . . . . . Uniques/NPCs Destroyed . | . . . . . . . . . . . . . . . . . . . . . Combat | -11 -10 -10 -10 -9 -8 -8 -8 -8 -7 -7 -7 -7 -6 -6 -5 -5 -5 -5 -4 -4 -------- Run | Yrd Mat Min Exi Min Mat Gar Mat Gar Fac Gar Sto Gar Fac DSF Fac Upp Upp War Pro Fac Hostile Shots Fired 1641 | . 43 12 . 18 51 117 50 68 89 219 139 183 . 33 54 31 111 31 49 343 Missed 514 | . 21 4 . 5 12 35 8 23 33 69 56 61 . 13 14 12 22 9 18 99 Hits 1127 | . 22 8 . 13 39 82 42 45 56 150 83 122 . 20 40 19 89 22 31 244 Melee 28 | . . . . . . 3 . . . . . 1 . 2 5 . 17 . . . Projectile 1099 | . 22 8 . 13 39 79 42 45 56 150 83 121 . 18 35 19 72 22 31 244 AOE 9 | . . 3 . . . . . . . . . . . . . . . . . 6 Critical Strikes 56 | . . . . 1 3 3 2 3 4 4 1 4 . 2 4 3 7 . 1 14 Actively Blocked 3 | . . . . 1 . . . . . . . . . . 1 . . . . 1 Part Disruptions 3 | . . . . . . . . . 2 . . . . . . . . . . 1 Damage Taken 18783 | . 252 177 . 139 499 1284 565 829 902 1692 833 1889 . 400 1098 316 1861 761 342 4944 Core 1841 | . 18 . . 25 65 124 65 63 40 140 85 198 . 59 40 16 150 174 36 543 Absorbed by Shields 1581 | . . . . . 82 216 . . . 52 114 . . . 37 . 197 243 187 453 Reduced by Siege Mode 85 | . . . . . . . . . . . 3 . . . 5 . 77 . . . Redirected to Shielding 147 | . . 12 . 10 9 . . 12 . 29 . . . . 10 . . . . 65 Ignored by Resistances 210 | . . . . . . . . . . . . . . . . . 72 98 40 . Regen/Repaired (Parts) 1067 | . 58 . . . 164 . 211 . 100 . 20 . . . . . . 514 . . Core Remaining (%) 68 | 100 . . . 82 . . . 42 . . . 33 . 93 . . . . 58 . Volleys Fired 909 | 8 69 14 . 22 51 99 52 62 43 93 63 52 2 15 81 24 49 12 27 71 Largest 4 | 2 2 2 . 2 3 3 3 3 3 3 2 3 1 3 4 3 4 3 3 3 Hottest 270 | 90 66 46 . 98 134 131 129 96 108 186 135 145 40 215 270 190 253 208 201 204 Shots Fired 1782 | 16 112 28 . 38 138 194 136 88 117 153 116 87 2 41 144 32 122 26 42 150 Gun 593 | 16 16 28 . 23 54 113 91 37 74 39 . 4 . . 21 5 39 . . 33 Cannon 1021 | . 78 . . 7 84 47 37 6 40 99 116 75 2 41 120 27 79 20 31 112 Launcher 165 | . 18 . . 8 . 34 8 45 3 15 . 8 . . . . 4 6 11 5 Special 3 | . . . . . . . . . . . . . . . 3 . . . . . Kinetic 1180 | . 94 28 . 23 118 146 91 43 114 75 76 46 2 28 51 8 78 13 15 131 Thermal 422 | 8 . . . 7 20 14 37 . . 63 40 33 . 13 90 24 36 7 16 14 Explosive 71 | . . . . . . 2 2 15 3 15 . 8 . . . . 4 6 11 5 Electromagnetic 106 | 8 18 . . 8 . 32 6 30 . . . . . . . . 4 . . . Robot Hit Streak 21 | 7 9 4 . 6 21 12 9 4 10 16 18 6 . 13 12 3 9 5 11 8 Robot Miss Streak 6 | 4 4 5 . 4 6 2 5 2 4 3 4 3 . 2 5 3 4 3 3 5 Penetration Max 1 | . . . . . 1 1 1 . 1 1 1 . . 1 1 . 1 . . 1 Secondary Targets 3 | . 1 . . 1 . . . 1 . . . . . . . . . . . . Max Gunslinging Chain 1 | . 1 . . 1 . . . 1 . . . . . . . . . . . . Shots Hit Robots 920 | 8 42 14 . 22 81 103 56 21 71 98 62 42 . 31 58 15 76 12 21 87 Core Hits 637 | 5 24 8 . 25 44 50 39 36 42 56 28 48 . 12 35 6 55 32 24 68 Critical Kills 5 | . . . . . . . 3 . 1 . . . . . . . . . . 1 Critical Parts Destroyed 18 | . . . . . 1 1 1 . 1 . . 7 . . . . 2 . . 5 Critical Strikes 58 | 2 1 . . . 2 3 4 . 5 2 3 8 . 5 . . 3 . 2 18 Burn 2 | 2 . . . . . . . . . . . . . . . . . . . . Meltdown 1 | . . . . . . . 1 . . . . . . . . . . . . . Destroy 11 | . . . . . 1 1 3 . 2 . . . . . . . 2 . . 2 Blast 33 | . 1 . . . 1 2 . . 3 2 3 1 . 5 . . 1 . 2 12 Smash 11 | . . . . . . . . . . . . 7 . . . . . . . 4 Melee Attacks 138 | . . . . . 13 10 5 4 14 34 1 25 . 12 . . . . . 20 Impact 90 | . . . . . 13 10 5 4 . . 1 25 . 12 . . . . . 20 Slashing 48 | . . . . . . . . . 14 34 . . . . . . . . . . Piercing . | . . . . . . . . . . . . . . . . . . . . . Sneak Attacks 12 | . . . . . . . . . 4 . . . . . . . . . . 8 Combat Hostiles . | . . . . . . . . . . . . . . . . . . . . . Follow-up Attacks . | . . . . . . . . . . . . . . . . . . . . . Damage Inflicted 43099 | 103 1326 243 . 553 1698 2979 1812 1918 3060 5224 3564 3668 . 1510 2340 638 3796 2167 1697 4803 Guns 7088 | 103 132 243 . 242 748 1497 807 312 969 678 . 17 . . 328 48 519 . . 445 Cannons 22416 | . 688 . . 54 923 781 430 75 662 2810 3548 1956 . 1507 1894 590 2469 599 818 2612 Explosions 11183 | . 504 . . 224 . 701 538 1531 1150 1238 . 950 . . 113 . 808 1568 879 979 Melee 2272 | . . . . . . . . . 263 498 . 745 . . . . . . . 766 Ramming 140 | . 2 . . 33 27 . 37 . 16 . 16 . . 3 5 . . . . 1 Kinetic 22990 | . 820 243 . 224 1438 2044 807 387 1631 2329 2879 1618 . 1206 1171 219 2087 456 534 2897 Thermal 7293 | 38 . . . 97 233 234 468 . 740 1159 669 355 . 301 1164 419 829 143 284 160 Explosive 7866 | . . . . . . . 187 847 410 1238 . 950 . . . . 808 1568 879 979 Electromagnetic 2538 | 65 504 . . 199 . 701 313 684 . . . . . . . . 72 . . . Impact 1511 | . . . . . . . . . . . . 745 . . . . . . . 766 Slashing 761 | . . . . . . . . . 263 498 . . . . . . . . . . Piercing . | . . . . . . . . . . . . . . . . . . . . . Highest Corruption 40 | . . . . . . 3 3 14 2 4 8 32 . 3 4 4 8 8 5 40 Average Corruption 6 | . . . . . . 2 3 9 1 2 6 22 . 3 3 4 4 7 5 9 Corruption Purged . | . . . . . . . . . . . . . . . . . . . . . Corruption Blocked . | . . . . . . . . . . . . . . . . . . . . . Effects 458 | . . . . . . 20 47 60 16 40 40 90 . 1 24 32 44 4 20 20 Message Errors 105 | . . . . . . 2 11 5 3 13 12 25 . 1 7 7 8 3 2 6 Matter Fused 116 | . . . . . . 8 11 13 3 12 8 24 . . 6 7 11 . 8 5 Heat Flow Errors 62 | . . . . . . 2 5 7 4 7 4 11 . . 4 8 3 . 3 4 Energy Discharges 49 | . . . . . . 1 7 9 . 2 4 8 . . 1 5 8 . 3 1 Parts Rejected 1 | . . . . . . . . . . . . . . . . . 1 . . . Parts Fused 8 | . . . . . . 1 1 1 . . . 1 . . . . 2 . . 2 Data Loss (minor) 48 | . . . . . . 2 6 11 1 1 4 11 . . 3 1 5 . 2 1 Data Loss (major) 22 | . . . . . . 2 . 6 3 . 2 1 . . 2 1 3 1 1 . Misfires 19 | . . . . . . . 5 4 1 2 3 1 . . . 2 1 . . . Alerts 13 | . . . . . . . 1 2 1 1 2 2 . . 1 1 1 . 1 . Misdirections 2 | . . . . . . . . . . . . 1 . . . . . . . 1 Weapon Failures 13 | . . . . . . 2 . 2 . 2 1 5 . . . . 1 . . . Overload Shots . | . . . . . . . . . . . . . . . . . . . . . Overflow Damage 2919 | . 84 . . . 5 7 26 64 169 104 295 869 . 33 305 103 30 45 60 720 Projectiles 1288 | . 20 . . . 5 3 26 . 41 84 295 288 . 33 208 103 23 45 44 70 Explosions 331 | . 64 . . . . 4 . 64 47 20 . 3 . . 97 . 7 . 16 9 Melee 1300 | . . . . . . . . . 81 . . 578 . . . . . . . 641 Knockbacks 83 | . 5 . . 1 1 2 . . 10 11 4 4 . 2 6 . 5 3 3 26 Impact 4 | . . . . 1 . . . . . . . 1 . . . . . . . 2 Kinetic 66 | . 5 . . . 1 . . . 10 9 3 2 . 2 6 . 5 3 2 18 Secondary 13 | . . . . . . 2 . . . 2 1 1 . . . . . . 1 6 Self-Inflicted Damage 1073 | . 17 . . . . 205 12 197 115 92 . 197 . . 215 . 23 . . . Shots 47 | . 2 . . . . 13 1 13 2 3 . 9 . . 3 . 1 . . . Rammed 14 | . 1 . . 4 3 . . . 1 . 1 . . 1 1 . . . . 2 Targets Rammed 20 | . 1 . . 6 4 . 3 . 1 . 1 . . 1 1 . . . . 2 Kicked 3 | . . . . . . . 3 . . . . . . . . . . . . . Crushed 3 | . . . . 2 1 . . . . . . . . . . . . . . . Highest Temperature 450 | 90 66 21 . 192 275 309 321 223 270 259 198 360 . 6 418 367 445 200 200 450 Average Temperature 88 | 30 14 8 . 62 73 67 83 71 33 49 50 139 . 4 88 122 131 141 105 133 Received Heat Transfer 3917 | . 99 42 . 45 260 278 90 99 252 634 215 261 . 45 129 117 403 68 47 833 Effects 16 | . . . . . 1 . 3 . . . . 3 . . 2 . 2 1 . 4 Shutdowns 1 | . . . . . . . . . . . . . . . . . 1 . . . Energy Bleed 3 | . . . . . . . . . . . . . . . 1 . 1 1 . . Interference 10 | . . . . . 1 . 3 . . . . 2 . . . . . . . 4 Short Circuit 1 | . . . . . . . . . . . . 1 . . . . . . . . Damage (minor) 1 | . . . . . . . . . . . . . . . 1 . . . . . Siege Activations 3 | . . . . . . . . . . . 1 . . . 1 . 1 . . . Total Turns 69 | . . . . . . . . . . . 19 . . . 10 . 40 . . . Longest Duration 40 | . . . . . . . . . . . 19 . . . 10 . 40 . . . Martial Activations . | . . . . . . . . . . . . . . . . . . . . . Shielding Activations . | . . . . . . . . . . . . . . . . . . . . . Robots Disrupted 1 | . . . . . . . . . . . . . . . . . 1 . . . Combat Hostiles 1 | . . . . . . . . . . . . . . . . . 1 . . . Robots Corrupted 10 | . 1 . . . . . . . . . . 5 . . . . . . . 4 Combat Hostiles 5 | . . . . . . . . . . . . 5 . . . . . . . . Parts Fried 27 | . . . . . . . 1 2 . . . 8 . . . . . . . 16 Impact Corruptions 29 | . . . . . . . . . . . . 11 . . . . . . . 18 Robots Melted 1 | . . . . . . . 1 . . . . . . . . . . . . . Combat Hostiles 1 | . . . . . . . 1 . . . . . . . . . . . . . Parts Melted 8 | 1 . . . . . . . . . . 1 . . 1 2 1 2 . . . Heat Transferred 9559 | 259 . . . 190 340 333 592 . 425 1517 888 424 . 450 1600 650 1200 147 333 211 Parts Sabotaged 1 | . . . . . . . . . . . . 1 . . . . . . . . Parts Stolen . | . . . . . . . . . . . . . . . . . . . . . Parts Stripped . | . . . . . . . . . . . . . . . . . . . . . Power Chain Reactions 6 | . 1 . . 2 . . 1 2 . . . . . . . . . . . . Alert | -11 -10 -10 -10 -9 -8 -8 -8 -8 -7 -7 -7 -7 -6 -6 -5 -5 -5 -5 -4 -4 ------- Run | Yrd Mat Min Exi Min Mat Gar Mat Gar Fac Gar Sto Gar Fac DSF Fac Upp Upp War Pro Fac Maximum Alert Level 5 | . . . . . . 4 3 5 3 5 4 5 3 3 2 . . . . 1 Low Security (%) 42 | 100 100 100 . 100 100 11 . . . . . . . . 59 . . . . 89 Level 1 5 | . . . . . . 12 26 7 . . . . . . 9 . . . . 10 Level 2 14 | . . . . . . 25 72 28 8 . . 2 . 55 30 . . . . . Level 3 21 | . . . . . . 34 . 32 91 23 59 25 100 44 . . . . . . Level 4 11 | . . . . . . 15 . 29 . 42 40 43 . . . . . . . . Level 5 4 | . . . . . . . . 2 . 34 . 28 . . . . . . . . High Security . | . . . . . . . . . . . . . . . . . . . . . Max Security . | . . . . . . . . . . . . . . . . . . . . . Sterilizations 1 | . . . . . . . . . . . . . . 1 . . . . . . Peak Influence 2072 | 10 106 78 . 78 142 1437 700 1627 1031 2072 1215 1920 1008 908 479 . . . . 243 Initial 1010 | . . . . . . 86 700 330 843 717 1010 698 1008 653 476 . . . . 150 Average 535 | 2 29 10 . 23 45 711 451 863 821 1403 1087 1311 974 727 253 . . . . 119 Influence Increases 12461 | 20 457 154 . 329 642 1391 595 1327 816 1505 773 1322 15 265 673 115 547 260 240 1015 Destroy 0b10 Robot/C 6480 | . 280 120 . 220 380 620 340 540 360 640 440 640 . 160 280 100 460 260 200 440 Destroy 0b10 Robot/NC 465 | 20 55 5 . 25 35 5 65 . 40 15 30 25 . . 45 . 5 . 10 85 Destroy Leader 928 | . 60 20 . 50 108 30 102 40 82 40 120 40 . 40 42 . 50 . 30 74 Allied During Kill 215 | . . 9 . 16 15 5 . 17 . 32 95 24 . . . . 2 . . . Successful Hack 146 | . 20 . . . 11 21 18 . 26 14 29 . . . 7 . . . . . Disable Machine 585 | . 30 . . . 60 30 15 75 150 30 15 30 15 30 90 . . . . 15 Anti-Garrison Action 1800 | . . . . . . 550 . 450 . 450 . 350 . . . . . . . . Destroy Structure 1062 | . 12 . . 3 18 100 40 160 83 149 44 138 . 5 164 . . . . 146 Advance Influence 150 | . . . . . . . . . . . . . . . . . . . . 150 Lose Combat Pursuer 630 | . . . . 15 15 30 15 45 75 135 . 75 . 30 45 15 30 . . 105 Influence Decreases 12318 | 20 457 154 . 327 511 87 1523 229 1398 458 1770 477 1002 290 1387 309 496 129 422 872 Entered New Map 5406 | . . . . . 2 47 737 179 764 308 1062 377 912 280 432 73 . 51 182 . Time Decay 5290 | 20 434 139 . 327 449 . 636 . 634 . 518 . 90 . 595 236 396 54 240 522 Lost Part 680 | . . . . . . 20 . 30 . 50 10 80 . 10 60 . 60 10 . 350 Lost Ally 469 | . . 15 . . 60 20 . 20 . 100 180 20 . . . . 40 14 . . Purge Threat 473 | . 23 . . . . . 150 . . . . . . . 300 . . . . . Squads Dispatched 43 | . 3 . . 1 2 . 4 . 8 . 10 . . 1 5 . 1 . . 8 Investigation 4 | . 2 . . . 1 . . . 1 . . . . . . . . . . . Extermination 11 | . . . . . . . . . 4 . 1 . . . 3 . . . . 3 Reinforcement 16 | . 1 . . 1 1 . 4 . 1 . 4 . . 1 1 . . . . 2 Assault 6 | . . . . . . . . . 2 . 2 . . . 1 . 1 . . . Garrison 6 | . . . . . . . . . . . 3 . . . . . . . . 3 Intercept . | . . . . . . . . . . . . . . . . . . . . . Searches Triggered . | . . . . . . . . . . . . . . . . . . . . . Construction Impeded 4 | . . . . 1 . . 1 . . . . . . . . . . . . 2 Haulers Reinforced 3 | . . . . . . . . . 1 . 2 . . . . . . . . . Active Scanning Responses . | . . . . . . . . . . . . . . . . . . . . . Cargo Convoy Interrupts . | . . . . . . . . . . . . . . . . . . . . . Stealth | -11 -10 -10 -10 -9 -8 -8 -8 -8 -7 -7 -7 -7 -6 -6 -5 -5 -5 -5 -4 -4 --------- Run | Yrd Mat Min Exi Min Mat Gar Mat Gar Fac Gar Sto Gar Fac DSF Fac Upp Upp War Pro Fac Distress Signals 24 | . 3 . . . 2 2 4 . 2 . 3 1 . . 3 . . 1 . 3 Communications Jammed 15 | . . . . . . . . . . . . . . . . . . . . 15 Distress Signals 15 | . . . . . . . . . . . . . . . . . . . . 15 Times Spotted 430 | . 25 6 . 11 24 36 26 24 30 39 26 31 . 10 18 6 21 48 9 40 Peak Tracking Total 17 | . 3 3 . 3 5 7 5 5 5 6 5 7 . 4 5 5 7 17 4 8 Tactical Retreats 32 | . . . . 1 1 2 1 1 4 7 . 3 . 2 3 1 2 . . 4 Traps | -11 -10 -10 -10 -9 -8 -8 -8 -8 -7 -7 -7 -7 -6 -6 -5 -5 -5 -5 -4 -4 ------- Run | Yrd Mat Min Exi Min Mat Gar Mat Gar Fac Gar Sto Gar Fac DSF Fac Upp Upp War Pro Fac Traps Triggered 33 | . 3 . . . 1 7 2 4 1 6 3 4 . . 1 . . . . 1 Indirectly 6 | . 1 . . . . 1 2 2 . . . . . . . . . . . . Trap Hack Attempts . | . . . . . . . . . . . . . . . . . . . . . Triggered . | . . . . . . . . . . . . . . . . . . . . . Disarmed . | . . . . . . . . . . . . . . . . . . . . . Reprogrammed . | . . . . . . . . . . . . . . . . . . . . . Reused . | . . . . . . . . . . . . . . . . . . . . . Traps Extracted . | . . . . . . . . . . . . . . . . . . . . . Installed . | . . . . . . . . . . . . . . . . . . . . . Triggered . | . . . . . . . . . . . . . . . . . . . . . Machines | -11 -10 -10 -10 -9 -8 -8 -8 -8 -7 -7 -7 -7 -6 -6 -5 -5 -5 -5 -4 -4 ---------- Run | Yrd Mat Min Exi Min Mat Gar Mat Gar Fac Gar Sto Gar Fac DSF Fac Upp Upp War Pro Fac Machines Disabled 66 | . 5 . . . 4 6 1 14 10 7 1 5 1 2 6 1 2 . . 1 Max in Single Turn 4 | . 2 . . . 1 1 1 3 3 1 1 1 1 1 4 1 1 . . 1 Garrison Access 2 | . . . . . . . . . . . . . . . 2 . . . . . Garrison Relay 18 | . . . . . . 4 . 6 . 5 . 3 . . . . . . . . Machines Repaired . | . . . . . . . . . . . . . . . . . . . . . Machines Dismantled 1 | . . . . . . . . 1 . . . . . . . . . . . . Machines Sabotaged . | . . . . . . . . . . . . . . . . . . . . . Overloaded Fab Kills . | . . . . . . . . . . . . . . . . . . . . . Hacking | -11 -10 -10 -10 -9 -8 -8 -8 -8 -7 -7 -7 -7 -6 -6 -5 -5 -5 -5 -4 -4 --------- Run | Yrd Mat Min Exi Min Mat Gar Mat Gar Fac Gar Sto Gar Fac DSF Fac Upp Upp War Pro Fac Machines Accessed 70 | . 10 . 2 . 11 3 7 2 12 2 7 . 1 . 9 2 . . 1 1 Terminals 43 | . 7 . . . 6 3 4 2 8 2 5 . 1 . 4 . . . 1 . Fabricators . | . . . . . . . . . . . . . . . . . . . . . Repair Stations 7 | . 1 . . . 2 . 1 . 2 . 1 . . . . . . . . . Recycling Units 8 | . 2 . . . 1 . 1 . 1 . . . . . 2 . . . . 1 Scanalyzers 2 | . . . . . 1 . . . . . . . . . 1 . . . . . Garrison Access 6 | . . . . . 1 . 1 . 1 . 1 . . . 2 . . . . . Total Hacks 154 | . 18 . 3 . 31 7 22 4 23 3 12 . 2 . 21 6 . . 1 1 Successful 71 | . 8 . 3 . 15 2 12 . 9 1 5 . 1 . 7 6 . . 1 1 Failed 81 | . 10 . . . 15 5 10 4 14 2 7 . 1 . 13 . . . . . Catastrophic 20 | . 2 . . . 4 . 2 2 6 1 1 . . . 2 . . . . . Database Lockouts 2 | . . . . . 1 . . . . . . . . . 1 . . . . . Manual 44 | . 7 . 1 . 9 . 9 . 7 . 1 . . . 10 . . . . . Terminals 95 | . 14 . . . 19 7 10 4 15 3 7 . 2 . 13 . . . 1 . Fabricators . | . . . . . . . . . . . . . . . . . . . . . Repair Stations 28 | . 2 . . . 8 . 10 . 5 . 3 . . . . . . . . . Recycling Units 10 | . 2 . . . 1 . 1 . 2 . . . . . 3 . . . . 1 Scanalyzers 4 | . . . . . 2 . . . . . . . . . 2 . . . . . Garrison Access 8 | . . . . . 1 . 1 . 1 . 2 . . . 3 . . . . . Terminal Hacks 31 | . 3 . 3 . 4 2 3 . 3 1 1 . 1 . 3 6 . . 1 . Record 9 | . . . 2 . . . . . . . . . . . . 6 . . 1 . Robot Analysis 6 | . 2 . . . . . 2 . 2 . . . . . . . . . . . Prototype ID Bank 1 | . . . . . 1 . . . . . . . . . . . . . . . Open Door 2 | . . . . . . 1 . . . . 1 . . . . . . . . . Open DSF 1 | . . . . . . . . . . . . . 1 . . . . . . . Branch Access Points 1 | . . . . . . . . . . . . . . . 1 . . . . . Emergency Access Points 1 | . . . . . . . . . . 1 . . . . . . . . . . Unreport Threat 4 | . 1 . . . . . 1 . . . . . . . 2 . . . . . Locate Traps 1 | . . . . . 1 . . . . . . . . . . . . . . . Hauler Manifests 1 | . . . . . 1 . . . . . . . . . . . . . . . Zone Layout 2 | . . . . . 1 . . . 1 . . . . . . . . . . . Patrol Navigation 1 | . . . . . . 1 . . . . . . . . . . . . . . Proto ID Catalog 1 | . . . 1 . . . . . . . . . . . . . . . . . Fabricator Hacks . | . . . . . . . . . . . . . . . . . . . . . Repair Station Hacks 20 | . 2 . . . 6 . 7 . 3 . 2 . . . . . . . . . Scan Component 11 | . 1 . . . 3 . 4 . 2 . 1 . . . . . . . . . Repair 9 | . 1 . . . 3 . 3 . 1 . 1 . . . . . . . . . Recycling Unit Hacks 7 | . 2 . . . 1 . 1 . 1 . . . . . 1 . . . . 1 Retrieve Components 7 | . 2 . . . 1 . 1 . 1 . . . . . 1 . . . . 1 Scanalyzer 2 | . . . . . 1 . . . . . . . . . 1 . . . . . Retrieve Study 2 | . . . . . 1 . . . . . . . . . 1 . . . . . Garrison Access Hacks 6 | . . . . . 1 . 1 . 1 . 1 . . . 2 . . . . . Unlock Access 4 | . . . . . 1 . 1 . 1 . 1 . . . . . . . . . Seal Access 2 | . . . . . . . . . . . . . . . 2 . . . . . Unauthorized Hacks 5 | . 1 . . . 2 . . . 1 . 1 . . . . . . . . . Terminals 5 | . 1 . . . 2 . . . 1 . 1 . . . . . . . . . Botnet 5 | . 1 . . . 2 . . . 1 . 1 . . . . . . . . . Fabricators . | . . . . . . . . . . . . . . . . . . . . . Repair Stations . | . . . . . . . . . . . . . . . . . . . . . Recycling Units . | . . . . . . . . . . . . . . . . . . . . . Scanalyzers . | . . . . . . . . . . . . . . . . . . . . . Garrison Access . | . . . . . . . . . . . . . . . . . . . . . Data Cores Recovered . | . . . . . . . . . . . . . . . . . . . . . Used . | . . . . . . . . . . . . . . . . . . . . . Hacking Detections 48 | . 8 . . . 7 2 5 2 10 2 4 . 1 . 6 . . . 1 . Full Trace Events 3 | . . . . . . 1 . 1 1 . . . . . . . . . . . Feedback Events . | . . . . . . . . . . . . . . . . . . . . . Feedback Blocked . | . . . . . . . . . . . . . . . . . . . . . Robot Schematics Acquired . | . . . . . . . . . . . . . . . . . . . . . Robots Built . | . . . . . . . . . . . . . . . . . . . . . Authchips . | . . . . . . . . . . . . . . . . . . . . . Time . | . . . . . . . . . . . . . . . . . . . . . Total Robot Build Rating . | . . . . . . . . . . . . . . . . . . . . . Part Schematics Acquired . | . . . . . . . . . . . . . . . . . . . . . Parts Built . | . . . . . . . . . . . . . . . . . . . . . Authchips . | . . . . . . . . . . . . . . . . . . . . . Time . | . . . . . . . . . . . . . . . . . . . . . Total Part Build Rating . | . . . . . . . . . . . . . . . . . . . . . Part Studies Acquired 2 | . . . . . 1 . . . . . . . . . 1 . . . . . Parts Repaired 9 | . 1 . . . 3 . 3 . 1 . 1 . . . . . . . . . Time 321 | . 32 . . . 90 . 142 . 38 . 19 . . . . . . . . . Parts Recycled . | . . . . . . . . . . . . . . . . . . . . . Recycled Matter . | . . . . . . . . . . . . . . . . . . . . . Retrieved Matter . | . . . . . . . . . . . . . . . . . . . . . Retrieved Components 35 | . 10 . . . 10 . 10 . . . . . . . 2 . . . . 3 Parts Scanalyzed . | . . . . . . . . . . . . . . . . . . . . . Part Schematics Acquired . | . . . . . . . . . . . . . . . . . . . . . Parts Damaged . | . . . . . . . . . . . . . . . . . . . . . Bothacking | -11 -10 -10 -10 -9 -8 -8 -8 -8 -7 -7 -7 -7 -6 -6 -5 -5 -5 -5 -4 -4 ------------ Run | Yrd Mat Min Exi Min Mat Gar Mat Gar Fac Gar Sto Gar Fac DSF Fac Upp Upp War Pro Fac Used RIF Installer . | . . . . . . . . . . . . . . . . . . . . . Robots Hacked 3 | . . . . . . . . . . . . . . . 3 . . . . . Non-combat 3 | . . . . . . . . . . . . . . . 3 . . . . . Combat . | . . . . . . . . . . . . . . . . . . . . . Robot Hacks Applied 3 | . . . . . . . . . . . . . . . 3 . . . . . no_distress 3 | . . . . . . . . . . . . . . . 3 . . . . . Relay Couplers Released 76 | . . . . . . 13 . 24 . 22 . 17 . . . . . . . . Machine Destruction 72 | . . . . . . 13 . 24 . 22 . 13 . . . . . . . . Programmers 4 | . . . . . . . . . . . . 4 . . . . . . . . Fabnet Peak Effective % . | . . . . . . . . . . . . . . . . . . . . . Robots Rewired 10 | . . . . . . . . . . 3 . . . . . . 2 5 . . Allies Hacked . | . . . . . . . . . . . . . . . . . . . . . Hacks Repelled . | . . . . . . . . . . . . . . . . . . . . . Allies | -11 -10 -10 -10 -9 -8 -8 -8 -8 -7 -7 -7 -7 -6 -6 -5 -5 -5 -5 -4 -4 -------- Run | Yrd Mat Min Exi Min Mat Gar Mat Gar Fac Gar Sto Gar Fac DSF Fac Upp Upp War Pro Fac Total Allies 33 | . . 5 . . . 2 . 2 . 5 10 2 . . . . 2 5 . . Largest Group 10 | . . 5 4 3 3 2 . 2 . 5 10 2 . . . . 2 5 1 . Highest-Rated Group 251 | . . 81 50 40 40 56 . 56 . 99 173 190 . . . . 78 251 64 . Highest-Rated Ally 95 | . . 31 16 16 16 31 . 31 . 31 29 95 . . . . 49 64 64 . Initial Warlord ECA Mod 37 | . . . . . . . 8 8 17 17 24 24 28 28 37 37 37 37 36 36 Total Orders 7 | . . 2 . 2 1 . . . . . . . . . . . . 2 . . STAY 3 | . . 1 . 1 . . . . . . . . . . . . . 1 . . ROAM 1 | . . . . . 1 . . . . . . . . . . . . . . . FOLLOW 3 | . . 1 . 1 . . . . . . . . . . . . . 1 . . Ally Attacks 231 | . . 6 . 9 32 12 . 12 . 35 77 14 . . . . 7 27 . . Total Damage 3723 | . . 42 . 126 233 105 . 271 . 416 876 676 . . . . 104 874 . . Kills 26 | . . 1 . 1 5 1 . 3 . 3 4 5 . . . . . 3 . . Allies Corrupted 2 | . . . . . . . . . . . 1 . . . . . 1 . . . Allies Melted . | . . . . . . . . . . . . . . . . . . . . . Intel | -11 -10 -10 -10 -9 -8 -8 -8 -8 -7 -7 -7 -7 -6 -6 -5 -5 -5 -5 -4 -4 ------- Run | Yrd Mat Min Exi Min Mat Gar Mat Gar Fac Gar Sto Gar Fac DSF Fac Upp Upp War Pro Fac Active Infowar (turns) 14716 | 26 1859 239 . . 2403 4 1401 4 2221 . 308 . 184 5 1038 1647 1242 268 761 1106 Sensors 3903 | . . . . . . . . . . . . . . . . 1631 1242 268 761 1 Terrain 10048 | . . . . . 2403 4 1401 4 2221 . 308 . 184 5 1038 1500 194 . . 786 Seismic 2125 | 26 1859 239 . . . . . . . . . . . . . . . . 1 . Jamming 344 | . . . . . . . . . . . . . . . . . . . . 344 Robot Analysis Total 6 | . 2 . . . . . 2 . 2 . . . . . . . . . . . Derelict Logs Recovered 4 | . . 1 . . . . . . . . . . . . . 1 2 . . . Drone Launches . | . . . . . . . . . . . . . . . . . . . . . Drone Recoveries . | . . . . . . . . . . . . . . . . . . . . . Exploration | -11 -10 -10 -10 -9 -8 -8 -8 -8 -7 -7 -7 -7 -6 -6 -5 -5 -5 -5 -4 -4 ------------- Run | Yrd Mat Min Exi Min Mat Gar Mat Gar Fac Gar Sto Gar Fac DSF Fac Upp Upp War Pro Fac Turns Passed 31750 | 124 1859 1969 550 1659 2773 2129 2244 1747 2228 1829 1422 1885 184 415 1881 1680 1457 1479 770 1466 Spaces Moved 12375 | 57 695 752 252 553 742 712 600 735 1073 847 537 497 55 91 835 934 748 804 284 572 Core 102 | 8 1 . . . . . . . . . . 5 . . . . . . . 88 Treads 5101 | 49 442 . . 355 742 712 116 . . . 481 258 55 91 96 279 743 83 284 315 Legs 1833 | . . . . . . . 484 735 507 . . 6 . . 1 . . . . 100 Wheels 5073 | . 252 752 252 198 . . . . 566 847 56 . . . 700 655 5 721 . 69 Hover 266 | . . . . . . . . . . . . 228 . . 38 . . . . . Flight . | . . . . . . . . . . . . . . . . . . . . . Fastest Speed 50 | 50 160 215 215 215 240 240 200 196 145 145 160 132 320 320 125 160 140 140 243 50 Average Speed 200 | 153 208 215 215 282 240 240 208 198 169 153 160 313 320 320 182 168 159 165 243 182 Slowest Speed 2200 | 160 1450 215 215 320 240 242 325 200 196 160 160 640 320 320 870 240 185 243 243 2200 Overloaded Moves . | . . . . . . . . . . . . . . . . . . . . . Propulsion Burnouts . | . . . . . . . . . . . . . . . . . . . . . Robots Hopped . | . . . . . . . . . . . . . . . . . . . . . Potential Cave-ins 16 | . . . . . . . . . 1 1 . . . . . . . 2 . 12 Cave-ins Triggered 3 | . . . . . . . . . . . . 1 . . . . . 2 . . Exploration Rate (%) 59 | 4 87 99 61 85 63 75 53 60 37 79 65 52 1 87 30 90 83 79 48 14 Regions Visited 20 Branch Regions 8 Pre-discovered Areas 4 | . . 2 1 . . . . . . . . . . . . 1 . . . . Known Exits Taken 9 | . . . . . 1 . 1 . 1 . 1 . 1 . 1 1 1 . 1 . Unknown Exits Taken 6 | 1 1 1 1 1 . . . . . . . . . . . . . 1 . . Scrap Searched 9 | . . 1 . 2 . . . . . . . . . . . 2 3 . 1 . Spaces Dug 305 | . 5 . . . 13 15 20 33 9 71 11 9 . 1 31 3 25 . 35 24 Terrain Destroyed 981 | . 8 . . 3 18 27 43 96 85 105 47 81 . 5 97 10 73 49 143 91 Melee 60 | . . . . . 13 5 5 2 9 4 1 8 . 1 . . . . . 12 Projectile 288 | . 5 . . . 5 5 25 4 8 6 46 11 . 4 69 10 36 4 11 39 AOE 632 | . 3 . . 3 . 17 12 90 68 95 . 62 . . 28 . 37 45 132 40 Terrain Rammed . | . . . . . . . . . . . . . . . . . . . . . Walls Destroyed . | . . . . . . . . . . . . . . . . . . . . . Machines Disabled . | . . . . . . . . . . . . . . . . . . . . . Actions | -11 -10 -10 -10 -9 -8 -8 -8 -8 -7 -7 -7 -7 -6 -6 -5 -5 -5 -5 -4 -4 --------- Run | Yrd Mat Min Exi Min Mat Gar Mat Gar Fac Gar Sto Gar Fac DSF Fac Upp Upp War Pro Fac Total 17386 | 74 999 1083 262 608 1609 945 1471 916 1372 1175 944 674 63 154 1069 1009 888 934 325 812 Wait 2899 | . 172 310 1 11 678 59 762 67 180 48 304 21 3 23 72 28 44 32 7 77 Move 12357 | 56 694 751 251 552 742 710 600 734 1073 846 537 496 54 90 834 933 747 802 283 572 Hop . | . . . . . . . . . . . . . . . . . . . . . Pick Up 197 | 3 31 5 4 4 31 10 5 3 7 12 3 28 2 2 18 5 5 11 1 7 Fast Attach 104 | 7 2 . . . 5 1 9 4 4 6 6 9 . 1 15 4 2 8 2 19 Attach 73 | . 3 . . 1 5 2 1 2 2 5 1 7 2 1 7 3 10 2 1 18 Detach 15 | . . . . . 3 . . . . . 1 . . . 2 . 5 2 . 2 Swap 265 | . 14 1 2 5 42 28 20 18 26 25 18 11 . 5 7 4 12 10 2 15 Drop 206 | . 13 2 4 6 35 11 14 4 14 20 7 12 . 3 24 8 3 15 2 9 Fire 909 | 8 69 14 . 22 51 99 52 62 43 93 63 52 2 15 81 24 49 12 27 71 Melee 138 | . . . . . 13 10 5 4 14 34 1 25 . 12 . . . . . 20 Ram 1 | . . . . . . . . . 1 . . . . . . . . . . . Kick 3 | . . . . . . . 3 . . . . . . . . . . . . . Crush 16 | . 1 . . 6 4 . . . . . 1 . . 1 1 . . . . 2 Escape Stasis 103 | . . . . . . 15 . 10 8 48 . 13 . . 8 . . 1 . . Rewire 92 | . . . . 1 . . . . . 38 2 . . 1 . . 11 39 . . Trap . | . . . . . . . . . . . . . . . . . . . . . Miscellaneous 8 | . . . . . . . . 8 . . . . . . . . . . . . Route ------- -11/Scrapyard -10/Materials (discovered 3 exits: [*Mat x2] / [*Min]) -10/Mines (discovered 4 exits: [*Mat x2] / *Exi / [*Sub]) -10/Exiles -9/Mines -8/Materials (discovered 4 exits: *Fac x3 / Gar) -8/Garrison (discovered 3 exits: *Mat x3) -8/Materials (discovered 2 exits: *Fac / Gar) -8/Garrison (discovered 2 exits: *Fac x2) -7/Factory (discovered 3 exits: *Fac x2 / Gar) -7/Garrison (discovered 3 exits: *Sto x3) -7/Storage -7/Garrison -6/Factory -6/DSF -5/Factory (discovered 3 exits: *Fac / *Upp x2) -5/Upper Caves -5/Upper Caves (discovered 2 exits: *Fac / *War) -5/Warlord -4/Proximity Caves -4/Factory History --------- Turn | Location | Event 36 | -11/Scrapyard | Discovered new exit (range 16) 125 | -11/Scrapyard | Entered Materials 342 | -10/Materials | Build established: Mutant 861 | -10/Materials | Discovered new exit (range 12) 1413 | -10/Materials | Discovered new exit (range 15) 1615 | -10/Materials | Discovered new exit (range 16) 1730 | -10/Materials | Repaired Imp. Light Cannon 1984 | -10/Materials | Entered Mines 2142 | -10/Mines | Learned location of Storage (-7) 2145 | -10/Mines | Assembled infested the area 2618 | -10/Mines | Assisted by bots powering up and referring to "LRC-V3" 3104 | -10/Mines | Deemed a non-threat by the Exiles lab entrance 3104 | -10/Mines | Discovered new exit (range 5) 3300 | -10/Mines | Discovered new exit (range 8) 3460 | -10/Mines | Discovered new exit (range 7) 3637 | -10/Mines | Discovered new exit (range 15) 3953 | -10/Mines | Entered Exiles 3953 | -10/Exiles | Accompanied by 4 allies 4019 | -10/Exiles | Met 8R-AWN 4054 | -10/Exiles | Met EX-HEX 4140 | -10/Exiles | Met EX-DEC 4151 | -10/Exiles | Learned location of Zion (-7) 4189 | -10/Exiles | Met EX-BIN 4219 | -10/Exiles | Aligned with FarCom system 4222 | -10/Exiles | Given EX-Vault access code 4273 | -10/Exiles | Opened EX-Vault 4297 | -10/Exiles | Found Skeleton Box 4339 | -10/Exiles | Warned to stay clear of 0b10 Research branches 4483 | -10/Exiles | Discovered new exit (range 10) 4503 | -10/Exiles | Left Exiles lab with Skeleton Box 4503 | -10/Exiles | Entered Mines 4503 | -9/Mines | Accompanied by 3 allies 4592 | -9/Mines | Found a Scrap Suit stashed away for nefarious purposes 4637 | -9/Mines | Discovered new exit (range 8) 6162 | -9/Mines | Entered Materials 6162 | -8/Materials | Accompanied by 3 allies 6162 | -8/Materials | Evolved 4 slots: Propulsion x2, Utility x1, Weapon x1 6215 | -8/Materials | Central database locked down 6494 | -8/Materials | Repaired Autogun 6736 | -8/Materials | Build established: Scavenger-Skirmisher 7134 | -8/Materials | Discovered new exit (range 14) 7836 | -8/Materials | Discovered new exit (range 16) 7958 | -8/Materials | Repaired Shield Generator 7985 | -8/Materials | Repaired Lgt. Treads 8343 | -8/Materials | Build established: Scavenger-Assassin 8347 | -8/Materials | Discovered new exit (range 16) 8935 | -8/Materials | Identified exit to Garrison 8935 | -8/Materials | Entered Garrison 8964 | -8/Garrison | Build established: Scavenger-Skirmisher 9178 | -8/Garrison | Garrison Relay disabled 9585 | -8/Garrison | Triggered checkpoint 9864 | -8/Garrison | Discovered new exit (range 12) 9871 | -8/Garrison | Triggered checkpoint 9992 | -8/Garrison | Garrison Relay disabled 10177 | -8/Garrison | Build established: Mutant 10381 | -8/Garrison | Triggered checkpoint 10517 | -8/Garrison | Garrison Relay disabled 10546 | -8/Garrison | Rescued a captive Derelict 10546 | -8/Garrison | Rescued a captive Derelict 10559 | -8/Garrison | Triggered checkpoint 10623 | -8/Garrison | Discovered new exit (range 13) 10661 | -8/Garrison | Attempted to access garrison exit controls, blocked by remote lockdown 10716 | -8/Garrison | Build established: Scavenger-Skirmisher 10755 | -8/Garrison | Triggered checkpoint 10924 | -8/Garrison | Discovered new exit (range 12) 11064 | -8/Garrison | Entered Materials 11751 | -8/Materials | Build established: Skirmisher 11875 | -8/Materials | Repaired Gauss Rifle 11936 | -8/Materials | Repaired Adv. EMP Blaster 11975 | -8/Materials | Repaired Imp. Terrain Scanner 11980 | -8/Materials | Discovered new exit (range 13) 13308 | -8/Materials | Identified exit to Garrison 13308 | -8/Materials | Entered Garrison 13432 | -8/Garrison | Core integrity fell below 50% 13604 | -8/Garrison | Triggered checkpoint 13627 | -8/Garrison | Garrison Relay disabled 13889 | -8/Garrison | System corruption reached 10% 13927 | -8/Garrison | Triggered checkpoint 13931 | -8/Garrison | Triggered checkpoint 14277 | -8/Garrison | Discovered new exit (range 13) 14302 | -8/Garrison | Triggered checkpoint 14343 | -8/Garrison | Garrison Relay disabled 14353 | -8/Garrison | Garrison Relay disabled 14580 | -8/Garrison | Triggered checkpoint 14654 | -8/Garrison | Discovered new exit (range 10) 14726 | -8/Garrison | Garrison Relay disabled 14768 | -8/Garrison | Rescued a captive Derelict 14770 | -8/Garrison | Rescued a captive Derelict 15055 | -8/Garrison | Entered Factory 15055 | -7/Factory | Evolved 2 slots: Propulsion x1, Utility x1 15519 | -7/Factory | Build established: Scavenger-Assassin 15737 | -7/Factory | Discovered new exit (range 12) 16422 | -7/Factory | Build established: Scavenger-Skirmisher 16639 | -7/Factory | Discovered new exit (range 13) 16655 | -7/Factory | First assault squad dispatched 16868 | -7/Factory | Repaired Carbon-fiber Leg 17283 | -7/Factory | Identified exit to Garrison 17283 | -7/Factory | Entered Garrison 17309 | -7/Garrison | Triggered checkpoint 17362 | -7/Garrison | Garrison Relay disabled 17577 | -7/Garrison | Triggered checkpoint 17596 | -7/Garrison | Triggered checkpoint 17683 | -7/Garrison | Triggered checkpoint 17862 | -7/Garrison | Lost 3 parts (2n1u) 18079 | -7/Garrison | Remotely autohacked Sealed Heavy Doors 18080 | -7/Garrison | Rescued a captive Derelict 18081 | -7/Garrison | Rescued a captive Derelict 18181 | -7/Garrison | Discovered new exit (range 12) 18185 | -7/Garrison | Triggered checkpoint 18201 | -7/Garrison | Triggered checkpoint 18206 | -7/Garrison | Garrison Relay disabled 18551 | -7/Garrison | Triggered checkpoint 18578 | -7/Garrison | Discovered new exit (range 10) 18588 | -7/Garrison | Lost 4 allies 18617 | -7/Garrison | Triggered checkpoint 18654 | -7/Garrison | Garrison Relay disabled 18877 | -7/Garrison | Triggered checkpoint 18902 | -7/Garrison | Garrison Relay disabled 19071 | -7/Garrison | Discovered new exit (range 12) 19112 | -7/Garrison | Entered Storage 19332 | -7/Storage | Repaired Imp. Terrain Scanner 19459 | -7/Storage | Remotely autohacked Sealed Heavy Doors 19531 | -7/Storage | Assisted by bots powering up and referring to "LRC-V3" 19681 | -7/Storage | Lost 4 allies 19714 | -7/Storage | Remotely autohacked Sealed Heavy Doors 19890 | -7/Storage | Remotely autohacked Sealed Heavy Doors 19895 | -7/Storage | Found Prototype Launcher 19895 | -7/Storage | Identified Scatter Rocket Array 19912 | -7/Storage | First assault squad dispatched 19930 | -7/Storage | Garrison activated, responded to threat 19942 | -7/Storage | Build established: Scavenger-Tank 19973 | -7/Storage | Lost 4 allies 20534 | -7/Storage | Identified exit to Garrison 20534 | -7/Storage | Entered Garrison 20614 | -7/Garrison | Triggered checkpoint 20690 | -7/Garrison | Garrison Relay disabled 21012 | -7/Garrison | Build established: Tank 21056 | -7/Garrison | Triggered checkpoint 21065 | -7/Garrison | System corruption reached 10% 21126 | -7/Garrison | Crushed by falling debris 21126 | -7/Garrison | Core integrity fell below 50% 21159 | -7/Garrison | Triggered checkpoint 21169 | -7/Garrison | Triggered checkpoint 21210 | -7/Garrison | Destroyed 7 combat bots 21220 | -7/Garrison | Lost 4 parts (2n1u1w) 21393 | -7/Garrison | System corruption reached 30% 21590 | -7/Garrison | Build established: Scavenger-Mutant 21804 | -7/Garrison | Discovered new exit (range 10) 21853 | -7/Garrison | Found embedded Infiltrators 22292 | -7/Garrison | Triggered checkpoint 22322 | -7/Garrison | Garrison Relay disabled 22350 | -7/Garrison | Garrison Relay disabled 22419 | -7/Garrison | Entered Factory 22419 | -6/Factory | Evolved 2 slots: Utility x1, Weapon x1 22593 | -6/Factory | Build established: Scavenger-Skirmisher 22603 | -6/Factory | Identified exit to DSF 22603 | -6/Factory | Entered DSF 22672 | -6/DSF | Additional patrols routed to DSF 22932 | -6/DSF | Discovered new exit (range 15) 22994 | -6/DSF | Sterilization system engaged 23014 | -6/DSF | Ambient heat levels rising (+10) 23018 | -6/DSF | Entered Factory 23018 | -5/Factory | Evolved 2 slots: Utility x2 23318 | -5/Factory | First assault squad dispatched 23551 | -5/Factory | Lost 3 parts (1n2u) 24128 | -5/Factory | Central database locked down 24695 | -5/Factory | Discovered new exit (range 5) 24716 | -5/Factory | Identified exit to Factory 24744 | -5/Factory | Identified exit to Upper Caves 24899 | -5/Factory | Entered Upper Caves 24901 | -5/Upper Caves | Attracted the attention of an 0b10 checkpoint 24976 | -5/Upper Caves | Met a Warlord Commander 24977 | -5/Upper Caves | Learned location of Warlord (-5) 24978 | -5/Upper Caves | Warlord Commander delivered Encrypted Comm Array 25130 | -5/Upper Caves | Identified exit to Upper Caves 25555 | -5/Upper Caves | Learned Research trap positions 25555 | -5/Upper Caves | Learned Extension stockpile data 25555 | -5/Upper Caves | Learned Armory stockpile data 25555 | -5/Upper Caves | Learned Armory garrison access intel 26123 | -5/Upper Caves | Found Alien Artifact 26123 | -5/Upper Caves | Identified Core Expander 26123 | -5/Upper Caves | Installed Core Expander, added new Power slot 26416 | -5/Upper Caves | Build established: Skirmisher 26579 | -5/Upper Caves | Entered another Upper Caves area 26579 | -5/Upper Caves | Discovered exit to Factory (range 13) 26879 | -5/Upper Caves | Attracted the attention of an 0b10 checkpoint 27073 | -5/Upper Caves | Build established: Tank 27110 | -5/Upper Caves | Identified exit to Warlord 27555 | -5/Upper Caves | Attracted the attention of an 0b10 outpost 27793 | -5/Upper Caves | Lost 5 parts (3u2w) 28036 | -5/Upper Caves | Entered Warlord 28104 | -5/Warlord | System corruption cleaned by Quarantine Array 28319 | -5/Warlord | Build established: Scavenger-Mutant 28715 | -5/Warlord | Remotely autohacked Sealed Heavy Doors 28723 | -5/Warlord | Found Prototype Device 28723 | -5/Warlord | Identified Exp. Focal Shield 28726 | -5/Warlord | Found Prototype Processor 28726 | -5/Warlord | Identified Exp. Core Analyzer 28733 | -5/Warlord | Found Prototype Hackware 28811 | -5/Warlord | Build established: Commander-Tank 28881 | -5/Warlord | Received a Watcher feed algorithm from an ecstatic Tinkerer 28979 | -5/Warlord | Warlord's base attacked by MAIN.C 29074 | -5/Warlord | Met Warlord 29296 | -5/Warlord | Found Prototype Ballistic Cannon 29296 | -5/Warlord | Identified Hvy. Autocannon 29322 | -5/Warlord | Lost 4 allies 29329 | -5/Warlord | Warlord forces counterattacked 29386 | -5/Warlord | Spotted Striker 29388 | -5/Warlord | Destroyed Striker 29425 | -5/Warlord | Spotted Executioner 29445 | -5/Warlord | Destroyed 8 combat bots 29447 | -5/Warlord | Lost 7 allies 29478 | -5/Warlord | Crushed by falling debris 29479 | -5/Warlord | Spotted Executioner 29481 | -5/Warlord | Crushed by falling debris 29481 | -5/Warlord | Spotted Striker 29481 | -5/Warlord | Spotted B-86 Titan 29483 | -5/Warlord | Spotted Striker 29483 | -5/Warlord | Spotted B-75 Beast 29490 | -5/Warlord | Discovered new exit (range 12) 29515 | -5/Warlord | Entered Proximity Caves 29515 | -4/Proximity Caves | Accompanied by 1 ally 29518 | -4/Proximity Caves | Spotter reported a threat 29538 | -4/Proximity Caves | Lost 9 allies 29755 | -4/Proximity Caves | Build established: Scavenger-Tank 30285 | -4/Proximity Caves | Entered Factory 30285 | -4/Factory | Evolved 2 slots: Utility x2 31307 | -4/Factory | Lost 3 parts (1p1n1u) 31321 | -4/Factory | Garrison activated, responded to threat 31398 | -4/Factory | Identified System Mapper 31428 | -4/Factory | Lost 14 parts (1p4n5u4w) 31602 | -4/Factory | System corruption reached 10% 31617 | -4/Factory | Lost 7 parts (2p1n1u3w) 31662 | -4/Factory | Build established: Hacker-Mutant 31665 | -4/Factory | System corruption reached 30% 31751 | -4/Factory | Self-destructed Last Messages --------------- 31729_ Penetrated by Slug. 31732_ Exp. Core Analyzer destroyed. 31737_ System corrupted: Matter fused (-7). 31745_ K-01 Serf destroyed. 31745_ Destroyed Terrain Scanner. 31745_ U-05 Engineer destroyed. 31745_ Adv. Power Amplifier destroyed. 31746_ Myomer Leg destroyed. 31746_ ALERT: Construction progress impeded, dispatching reinforcements to local area. 31747_ The unstable cave ceiling collapses. 31747_ Penetrated by Slug. 31747_ Scatter Rocket Array destroyed. 31748_ The unstable cave ceiling collapses. 31748_ U-05 Engineer lays Concrete. 31749_ Acquired 10 matter. 31749_ Imp. Phase Shifter destroyed. 31749_ U-05 Engineer lays Concrete. 31750_ Penetrated by Slug. 31751_ U-05 Engineer lays Concrete. Map ----- +----------------------------------------------------+ | # !!! ????????????? | | = !!! ?????????????? | | !! "??????????????? | | #+########### # #" ""?????????????? | | ??? ???????####### " ""?????????????? | | ??????????????????# " ????????????? | | ??????????????????# # ????????????? | | ??????????????????#! #??######??????????????? | | ??????????????????# ##?????????????????????? | | ??????????????????# "#?????????????????????? | | ??????????????????# ##?????????????????????? | | ??????????????????# ! #??????????????????????? | | ??????????????????#######"#??????????????????????? | | ???????????????????????# ??????????????????????? | | ???????????????????????# ??????????????????????? | | ???????????????????????# #??????????????????????? | | ????????????????????????###??????????????????????? | | ????????????????????????#!##????###########??????? | | ???????????????????????## ##????# #??????? | | ???????????????????????## ]#????# #??????? | | ???????????????????????# ##????# #??????? | | ??????????????????############### #??????? | | ??????????????????# ! ## #??????? | | ??????????????????# " ## #??????? | | ?????##########???# ## #??????? | | ?????# #???# @ ## #??????? | | ?????# """ #???# % ## #??????? | | ?????# """ |#?# % #" #??????? | | ?????# """ #?# ## #??????? | | ?????# ## % ## #??????? | | ?????# """ ### g % ## #??????? | | ?????# """ / g Y ## #??????? | | ?????# """ ## u p ## #??????? | | ?????# # % ## #??????? | | ?????#####+### # ###/############+########??? | | ???????? ???? ? p | | ?????? ????? | | ????? ????????? u | | ??? " ???????????? [! | | ??? "?????????????? w !! ^ | | ??????????????????###??? ############## | | ??????????????????????? ??????????????? | | ??????????????????????? ???????????????? | | ??????????????????????? ???????????????? | | ??????????????????????? ????????????????? | | ??????????????????????? ????????????????? | | ??????????????????????? ?????????????????? | | ????????????????????????????? ???????????????????? | | ?????????????????????????????????????????????????? | | ?????????????????????????????????????????????????? | +----------------------------------------------------+ Best States ------------- Heat Dissipation 81 Energy Generation 35 Energy Capacity 535 Matter Stores 300 Matter Capacity 300 Sight Range 16 Robot Scan Range 15 Terrain Scan Range 16 Terrain Scan Density 110 Jamming Range 12 Power Amplification 30 Additional Mass Support 9 Base Temperature (-) 200 Armor Coverage 1200 Resistance: KI 30 Resistance: TH 15 Core Shielding 30 Propulsion Shielding 33 Phase Shifting 5 Evasion (%) 55 Target Analysis 6 Core Analysis 8 Recoil Reduction 5 Matter Filtering 30 Offensive Hacking 34 Defensive Hacking 14 Item Schematics ----------------- None Robot Schematics ------------------ None Fabricated ------------ Nothing Repaired ---------- Imp. Light Cannon | 57% | -10/Materials Autogun | 65% | -8/Materials Shield Generator | 70% | -8/Materials Lgt. Treads | 17% | -8/Materials Gauss Rifle | 2% | -8/Materials Adv. EMP Blaster | 35% | -8/Materials Imp. Terrain Scanner | 22% | -8/Materials Carbon-fiber Leg | 9% | -7/Factory Imp. Terrain Scanner | 9% | -7/Storage Studied --------- Minigun | -8/Materials | Hacked Gauss Cannon | -5/Factory | Hacked Alien Tech Used ----------------- Core Expander Achievements -------------- None Challenges ------------ None Game ------ Seed BorgHypervelocitySpoofer Manual? 0 Play Time 03:13:31 Cumulative 95.4 hours Start 2026.02.20 @ 16:02:37 End 2026.02.21 @ 12:33:38 Sessions 17 Manual Loads 0 Difficulty Rogue Special Mode None Game No. 121 Rogue 46 Adventurer 75 Explorer 0 Win Type - Total 4 Types 4/0/0/0/0/0/0/0/0/0 Lore% 48 Gallery% 49 Achievement% 39 Wizard Run 0 Options --------- Layout 2 ASCII 0 Keyboard 0 Movement Numpad Keybinds 0 Fullscreen 2 Font 24/Smallcaps Map View 50x44 Zoom Use 0% Tactical HUD 1 Map Filters NONE Filters NONE Steam 1 RUN: a7db1ed7-e7d0-4f14-b88e-b0670c6c636c